bitfinex/quotes_ETHUSD_20220202
["timestamp","ask_amount","ask_price","bid_price","bid_amount"]
[1643782053452,0.84917338,2766.8,2766.4,3.41110086]
[1643782053453,2.30839322,2766.8,2766.4,1.80715]
[1643782053656,2.30839322,2766.8,2766.3,0.1807]
[1643782053657,1.45921984,2766.7,2766.3,0.1807]
[1643782053853,1.45921984,2766.7,2766.4,0.07638876]
[1643782054653,0.4275164,2766.5,2766.4,0.07638876]
[1643782054855,0.84917338,2766.8,2766.4,0.07638876]
[1643782055055,1.46018622,2766.7,2766.4,0.07638876]
[1643782056665,1.46018622,2766.7,2766.1,0.1807]
[1643782056864,1.46018622,2766.7,2766.2,0.07638939]
[1643782057305,0.35537053,2766.5,2766.2,0.07638939]
[1643782059412,0.35341318,2766.5,2766.2,0.07638939]
[1643782059613,0.84917338,2766.8,2766.2,0.07638939]
[1643782059824,0.1807,2767.3,2766.4,6.95]
[1643782060014,1.45991387,2767.2,2766.5,0.07638939]
[1643782060214,1.45991387,2767.2,2766.6,0.1806]
[1643782060421,1.45991387,2767.1,2766.7,0.07638939]
[1643782060717,0.1307,2767.8,2766.7,0.07638939]
[1643782060957,1.45968496,2767.7,2766.8,3.52358571]
[1643782061158,0.1806,2767.6,2766.9,0.07638939]
[1643782061359,1.45968496,2767.5,2766.9,0.07638939]
[1643782061758,1.45968496,2767.4,2766.9,0.07638939]
[1643782061959,1.45968496,2767.3,2766.9,0.97981939]
[1643782062159,0.32077124,2767.2,2766.9,0.90343]
[1643782063160,0.32077124,2767.2,2766.9,2.97124885]
[1643782063561,0.32077124,2767.2,2766.9,0.90343]
[1643782063761,0.22077124,2767.2,2766.9,0.90343]
[1643782063963,0.22077124,2767.2,2766.9,3.05484631]
[1643782064163,0.1806,2767.8,2766.9,3.05484631]
[1643782064364,1.45878962,2767.7,2766.9,3.05484631]
[1643782064562,1.45878962,2767.7,2767.0,0.07637225]
[1643782064820,1.45878962,2767.7,2767.0,1.27979225]
[1643782065021,1.45878962,2767.7,2767.0,1.20342]
[1643782065220,0.40580626,2767.1,2767.0,1.20342]
[1643782065421,0.40580626,2767.1,2767.0,7.29393841]
[1643782065628,0.1806,2767.8,2767.0,7.21756642]
[1643782065821,1.45837223,2767.7,2767.0,7.21756642]
[1643782066321,1.45837223,2767.7,2767.0,3.16756642]
[1643782066525,1.45837223,2767.7,2767.0,3.13086424]
[1643782066726,0.33176154,2767.2,2767.0,3.13086424]
[1643782066927,1.57229686,2768.1,2767.0,3.13086424]
[1643782066928,3.63403102,2768.8,2767.3,6.95]
[1643782067141,1.57806056,2768.7,2768.0,0.01283504]
[1643782067331,1.39746056,2768.6,2768.1,0.1806]
[1643782067528,1.39746056,2768.5,2768.1,0.1806]
[1643782067727,0.04433703,2768.7,2768.1,0.1806]
[1643782067925,1.32308045,2768.6,2768.1,0.1806]
[1643782068133,0.33773081,2768.5,2768.1,0.1806]
[1643782068327,0.04320019,2768.5,2768.1,1.08366]
[1643782068562,0.04263176,2768.4,2768.1,1.08366]
[1643782068962,0.04206334,2768.3,2768.1,1.08366]
[1643782069265,0.04149492,2768.2,2768.1,3.20743857]
[1643782069763,0.04149492,2768.2,2768.1,1.9867]
[1643782069963,0.04149492,2768.2,2768.1,4.10527405]
[1643782070567,0.04149492,2768.2,2768.1,3.20221405]
[1643782071369,0.04149492,2768.2,2768.1,1.08364]
[1643782071571,0.04149492,2768.2,2768.1,0.1806]
[1643782072263,0.04149492,2768.2,2767.9,0.1806]
[1643782072659,0.04092649,2768.1,2767.9,0.1806]
[1643782073059,0.41271814,2768.5,2767.8,0.1806]
[1643782073060,0.04035807,2768.0,2767.8,0.1806]
[1643782073465,0.04263176,2768.4,2767.8,0.1806]
[1643782073959,0.43624381,2768.0,2767.8,0.1806]
[1643782074559,0.04320019,2768.5,2767.8,0.1806]
[1643782074762,0.04320019,2768.5,2767.8,2.3921507]
[1643782074962,0.04263176,2768.4,2767.8,0.1806]
[1643782075367,0.1806,2768.9,2767.8,2.58868299]
[1643782075368,0.04206334,2768.3,2767.8,2.58868299]
[1643782075561,0.04206334,2768.3,2768.0,0.40070227]
[1643782075762,0.04149492,2768.2,2768.0,0.40070227]
[1643782075968,0.03288451,2768.2,2768.0,0.40070227]
[1643782076165,0.04092649,2768.1,2767.8,2.88868299]
[1643782077067,0.04092649,2768.1,2767.8,3.79177299]
[1643782077265,0.04092649,2768.1,2767.9,0.90303]
[1643782077468,0.04092649,2768.1,2768.0,0.1806]
[1643782078268,0.04092649,2768.1,2768.0,2.28833612]
[1643782078471,0.04092649,2768.1,2768.0,6.18833612]
[1643782078867,0.04092649,2768.1,2768.0,2.28833612]
[1643782080222,0.04092649,2768.1,2768.0,4.06900612]
[1643782080420,0.1806,2769.0,2768.1,6.85]
[1643782080719,0.01286912,2769.6,2768.4,0.3]
[1643782080720,0.1804,2769.5,2768.4,0.3]
[1643782080918,0.37707358,2769.3,2768.5,2.19483773]
[1643782081128,1.35525536,2769.2,2768.5,2.19483773]
[1643782081719,1.35525536,2769.2,2768.6,0.75878544]
[1643782084772,0.37707358,2769.3,2768.6,0.75878544]
[1643782085070,0.42469225,2768.8,2768.6,0.75878544]
[1643782085370,0.42469225,2768.8,2768.4,0.1804]
[1643782085975,0.3,2768.8,2768.4,0.1804]
[1643782086173,7.47,2769.2,2768.0,2.35245098]
[1643782086174,0.1804,2769.1,2768.0,2.35245098]
[1643782086973,0.34169781,2769.0,2768.2,0.31909041]
[1643782087216,0.34169781,2769.0,2768.3,0.1804]
[1643782087628,0.1804,2769.1,2768.7,0.79301021]
[1643782088425,1.8252612,2769.6,2768.7,0.79301021]
[1643782088426,0.1804,2769.5,2768.7,0.79301021]
[1643782088626,0.32631749,2769.3,2768.7,0.79301021]
[1643782090230,0.1804,2769.5,2768.7,0.79301021]
[1643782090427,0.1804,2769.6,2768.7,0.79301021]
[1643782091289,0.38204862,2769.5,2768.7,1.15020696]
[1643782092487,0.38204862,2769.5,2768.8,0.1804]
[1643782098025,7.47,2769.7,2768.8,0.1804]
[1643782100063,0.39473947,2769.4,2768.8,0.1804]
[1643782103912,7.47,2769.7,2768.8,2.23352023]
[1643782104718,1.39778134,2769.6,2768.8,2.23352023]
[1643782105317,1.39778134,2769.6,2768.8,0.1804]
[1643782106371,2.69778134,2769.6,2768.8,0.1804]
[1643782106576,2.69778134,2769.6,2768.3,0.53209468]
[1643782106577,0.01223208,2769.0,2768.3,0.53209468]
[1643782106774,1.39778134,2768.9,2768.3,0.53209468]
[1643782107572,0.4160481,2768.8,2768.3,1.30751861]
[1643782107775,1.39778134,2768.7,2768.4,0.1805]
[1643782108573,7.47,2769.1,2768.4,0.1805]
[1643782108771,7.47,2769.1,2768.5,0.11740405]
[1643782108772,1.39716321,2769.0,2768.5,0.11740405]
[1643782108974,1.39716321,2769.0,2768.6,0.1804]
[1643782109173,1.39716321,2769.0,2768.4,0.1804]
[1643782109379,1.39716321,2769.0,2768.5,0.11278061]
[1643782109713,0.36566284,2768.9,2768.5,0.11278061]
[1643782109918,1.39716321,2768.8,2768.5,0.11278061]
[1643782110512,1.39716321,2768.8,2768.4,0.1804]
[1643782110713,1.39716321,2768.8,2768.5,0.11286249]
[1643782111716,1.39716321,2768.7,2768.5,0.11286249]
[1643782111917,1.39716321,2768.6,2768.5,4.66286249]
[1643782112118,7.47,2769.1,2768.5,4.66286249]
[1643782112119,1.39716321,2769.0,2768.5,4.66286249]
[1643782112318,1.39716321,2769.0,2768.6,0.11286249]
[1643782112718,0.43653786,2768.8,2768.6,0.11286249]
[1643782112926,1.39716321,2768.7,2768.6,4.06286249]
[1643782113121,1.39716321,2769.0,2768.6,4.06286249]
[1643782113461,7.47,2769.1,2768.7,0.11286249]
[1643782114163,7.82802717,2769.1,2768.4,0.1804]
[1643782120816,7.82802717,2769.1,2768.5,0.90286]
[1643782121065,7.82802717,2769.1,2768.4,0.1804]
[1643782121066,8.52186071,2769.1,2768.4,0.1804]
[1643782122368,8.50951925,2769.1,2768.4,0.1804]
[1643782123168,0.68149208,2769.0,2768.4,0.1804]
[1643782123767,8.80951925,2769.1,2768.4,2.28295509]
[1643782123968,8.80951925,2769.1,2768.4,1.82769135]
[1643782124269,0.68149208,2769.0,2768.4,3.9159087]
[1643782124468,0.68149208,2769.0,2768.4,1.82769135]
[1643782124918,0.68149208,2769.0,2768.6,3.5]
[1643782126319,8.50951925,2769.1,2768.6,3.5]
[1643782126720,7.82802717,2769.1,2768.6,3.5]
[1643782126921,8.50951925,2769.1,2768.6,3.5]
[1643782127322,0.68149208,2769.0,2768.6,3.5]
[1643782128027,8.50951925,2769.1,2768.6,3.5]
[1643782128460,7.82802717,2769.1,2768.6,3.5]
[1643782128660,7.82802717,2769.1,2768.5,2.07702308]
[1643782129060,8.50951925,2769.1,2768.5,2.07702308]
[1643782129462,8.50951925,2769.1,2768.4,2.73060135]
[1643782130061,0.68149208,2769.0,2768.4,2.73060135]
[1643782130862,7.82802717,2769.1,2768.4,2.73060135]
[1643782130863,8.50951925,2769.1,2768.4,2.73060135]
[1643782131268,0.68149208,2769.0,2768.4,2.73060135]
[1643782132213,8.50951925,2769.1,2768.5,2.08125527]
[1643782132811,8.50951925,2769.1,2768.5,2.98411527]
[1643782133012,8.50951925,2769.1,2768.5,0.90286]
[1643782133219,1.43226053,2769.0,2768.6,0.99393452]
[1643782133416,1.43226053,2769.0,2768.7,0.99393452]
[1643782133616,1.43226053,2769.0,2768.8,0.09107769]
[1643782133818,1.43226053,2769.0,2768.9,0.09108102]
[1643782134019,1.43226053,2769.0,2768.9,0.09108071]
[1643782134217,1.43226053,2769.0,2768.9,0.09108615]
[1643782134418,1.43226053,2769.0,2768.8,0.09108467]
[1643782134619,1.43226053,2769.0,2768.9,0.09108537]
[1643782135019,1.43226053,2769.0,2768.8,0.0911055]
[1643782135220,1.43226053,2769.0,2768.9,0.09108436]
[1643782135419,1.43226053,2769.0,2768.9,6.8]
[1643782135620,1.43226053,2769.0,2768.9,0.10345947]
[1643782136066,1.43226053,2769.0,2768.8,0.1804]
[1643782136067,1.41965242,2769.0,2768.8,0.1804]
[1643782136266,1.41965242,2769.0,2768.9,2.6763288]
[1643782136469,1.41965242,2769.0,2768.8,0.1804]
[1643782136671,1.78496435,2769.0,2768.9,2.97632787]
[1643782136869,1.78496435,2769.0,2768.9,0.07632787]
[1643782137071,1.78496435,2769.0,2768.9,0.07632956]
[1643782137269,1.78496435,2769.0,2768.8,0.1804]
[1643782137469,1.45669035,2768.9,2768.8,0.1804]
[1643782137673,1.45669035,2768.9,2768.8,3.02633011]
[1643782139068,1.45669035,2768.9,2768.8,0.07633011]
[1643782140113,1.45669035,2768.9,2768.8,7.0]
[1643782140314,1.45669035,2768.9,2768.8,0.07633332]
[1643782140517,1.45669035,2768.9,2768.7,0.1804]
[1643782140718,1.45669035,2768.9,2768.8,2.97633205]
[1643782141719,1.45669035,2768.9,2768.8,7.02633205]
[1643782141919,7.47,2769.1,2768.8,3.87914205]
[1643782142224,1.2462,2769.4,2768.8,3.87914205]
[1643782142225,0.68149208,2769.4,2768.9,0.07633205]
[1643782142419,0.68149208,2769.4,2768.9,2.24499841]
[1643782142617,0.68149208,2769.4,2768.9,0.07633205]
[1643782142833,1.65829541,2770.4,2769.5,6.95]
[1643782143027,2.28612705,2770.7,2769.5,6.95]
[1643782143028,1.37129315,2770.7,2770.3,0.01255625]
[1643782143471,0.01106686,2770.1,2769.8,2.17331712]
[1643782143673,1.43310589,2770.0,2769.9,3.22734977]
[1643782143870,1.43310589,2770.0,2769.9,2.07455412]
[1643782144068,0.70004396,2770.0,2769.9,2.07455412]
[1643782144269,0.70004396,2770.0,2769.9,0.26984412]
[1643782145069,0.70004396,2770.0,2769.9,0.1804]
[1643782145472,0.70004396,2770.0,2769.5,0.25]
[1643782145473,2.98427393,2770.0,2769.5,0.25]
[1643782145669,0.01106686,2770.1,2769.1,5.0099]
[1643782145869,0.0086262,2770.1,2769.2,3.5]
[1643782146174,0.0086262,2770.1,2769.1,5.0099]
[1643782146375,0.0086262,2770.1,2769.2,5.57919536]
[1643782146571,0.0086262,2770.1,2769.5,0.01268085]
[1643782146768,0.0086262,2770.1,2769.5,0.53568085]
[1643782147211,0.0086262,2770.1,2769.5,1.83568085]
[1643782147416,0.0086262,2770.1,2769.6,7.67169963]
[1643782147815,0.0086262,2770.1,2769.7,0.1805]
[1643782149115,0.0086262,2770.1,2769.6,4.24269293]
[1643782149717,0.0086262,2770.1,2769.8,0.33386887]
[1643782150118,0.0086262,2770.1,2769.6,1.00219293]
[1643782150969,0.0086262,2770.1,2769.6,0.95219293]
[1643782151169,0.0086262,2770.1,2769.6,1.30110146]
[1643782151376,0.0086262,2770.1,2769.6,1.12070146]
[1643782152672,0.0086262,2770.1,2769.7,0.1804]
[1643782154376,0.0086262,2770.1,2769.6,0.1804]
[1643782154811,0.0086262,2770.1,2769.6,1.08296]
[1643782155014,0.1804,2770.7,2770.6,0.8323388]
[1643782155221,4.53027355,2771.4,2770.3,0.13819997]
[1643782155222,0.1804,2771.1,2770.3,0.13819997]
[1643782155413,0.91014629,2771.2,2770.3,0.13819997]
[1643782155813,0.1804,2771.3,2770.3,0.13819997]
[1643782155814,0.40340888,2770.8,2770.3,0.13819997]
[1643782156015,0.91014629,2771.2,2770.3,0.13819997]
[1643782156218,0.1804,2771.3,2770.3,0.13819997]
[1643782156219,0.1804,2771.1,2770.3,0.13819997]
[1643782156522,0.1804,2771.2,2770.3,0.13819997]
[1643782156716,1.09054629,2771.2,2770.3,0.13819997]
[1643782156919,1.09054629,2771.2,2769.8,0.01217993]
[1643782156920,1.0,2770.8,2769.8,0.01217993]
[1643782157118,1.0,2770.8,2770.0,0.1804]
[1643782157119,0.91014629,2770.8,2770.0,0.1804]
[1643782157318,0.91014629,2770.8,2769.7,0.1804]
[1643782157319,1.0,2770.6,2769.7,0.1804]
[1643782157517,2.20272,2770.6,2769.2,0.1804]
[1643782157717,0.43739689,2770.2,2769.3,0.40337753]
[1643782157918,0.43739689,2770.2,2769.4,0.1804]
[1643782158119,0.73739689,2770.2,2769.4,0.1804]
[1643782158463,0.3,2770.2,2769.4,0.1804]
[1643782158663,1.0,2770.3,2769.4,0.1804]
[1643782158664,0.3,2770.3,2769.4,0.1804]
[1643782158862,0.90277,2770.4,2769.4,0.1804]
[1643782159072,0.1804,2770.3,2769.4,0.1804]
[1643782159264,0.1804,2770.3,2769.8,0.71305385]
[1643782159465,0.1804,2770.3,2769.9,0.41441602]
[1643782159665,0.1804,2770.3,2769.8,0.71305385]
[1643782159865,0.1804,2770.6,2769.8,0.71305385]
[1643782160264,0.1804,2770.6,2769.2,1.08306]
[1643782160469,0.1804,2770.6,2769.3,0.90266]
[1643782160766,1.09054629,2770.6,2769.5,0.33954817]
[1643782161171,0.7804,2770.6,2769.5,0.33954817]
[1643782161576,0.4804,2770.6,2769.6,0.89611292]
[1643782161973,1.39054629,2770.6,2769.6,0.89611292]
[1643782162221,0.4804,2770.6,2769.6,0.89611292]
[1643782163228,1.39054629,2770.6,2769.6,0.89611292]
[1643782163422,0.4804,2770.6,2769.6,0.89611292]
[1643782163922,0.31541638,2770.2,2769.6,0.89611292]
[1643782164127,1.15780924,2770.1,2769.6,0.89611292]
[1643782164322,1.15780924,2770.1,2769.8,0.68575321]
[1643782164526,1.15780924,2770.0,2769.8,0.68575321]
[1643782164723,1.1804,2770.6,2769.8,0.68575321]
[1643782164724,0.3,2770.5,2769.8,0.68575321]
[1643782164926,0.3,2770.5,2769.9,2.10606076]
[1643782164927,1.15515856,2770.5,2769.9,2.10606076]
[1643782165128,1.15515856,2770.4,2769.8,0.68575321]
[1643782165329,1.15515856,2770.3,2770.2,3.81811704]
[1643782165528,1.15515856,2770.9,2770.2,3.81811704]
[1643782165727,1.15515856,2770.9,2770.2,0.36811704]
[1643782165973,1.83676319,2770.9,2770.2,0.36811704]
[1643782166373,1.83676319,2770.9,2770.0,1.2393]
[1643782166573,1.83676319,2770.9,2770.0,1.4197]
[1643782167073,1.83676319,2770.9,2770.6,0.79721893]
[1643782167074,2.13676319,2770.9,2770.6,0.79721893]
[1643782167275,1.15515856,2770.8,2770.0,1.4197]
[1643782167472,2.13676319,2770.9,2770.1,2.19668092]
[1643782167678,1.15515856,2770.8,2770.1,2.19668092]
[1643782167882,1.15515856,2771.0,2770.2,0.3]
[1643782168079,1.15515856,2770.9,2770.6,0.32443665]
[1643782168278,1.15515856,2770.8,2770.6,0.32443665]
[1643782168480,8.38014629,2771.5,2770.6,0.32443665]
[1643782168481,1.15515856,2770.7,2770.6,0.32443665]
[1643782168673,1.15515856,2770.7,2770.6,1.02088043]
[1643782168874,0.68160463,2771.2,2770.6,0.69644378]
[1643782169075,0.98160463,2771.2,2770.6,0.69644378]
[1643782169275,1.15515856,2771.1,2770.6,0.69644378]
[1643782172333,1.15515856,2771.0,2770.6,0.69644378]
[1643782172531,1.15515856,2770.9,2770.6,0.69644378]
[1643782172733,1.15515856,2770.8,2770.6,0.69644378]
[1643782172933,1.15515856,2770.7,2770.6,0.69644378]
[1643782173333,1.83676319,2771.2,2770.6,0.69644378]
[1643782173569,1.15515856,2771.1,2770.6,0.69644378]
[1643782173769,1.15515856,2771.0,2770.6,0.69644378]
[1643782173972,1.15515856,2770.9,2770.6,0.69644378]
[1643782174173,1.15515856,2770.8,2770.6,0.69644378]
[1643782174368,1.15515856,2770.7,2770.6,0.69644378]
[1643782174569,1.83676319,2771.2,2770.6,0.69644378]
[1643782175371,1.15515856,2771.1,2770.6,0.69644378]
[1643782175571,1.83676319,2771.3,2770.6,0.69644378]
[1643782175771,1.45515856,2771.2,2770.6,0.69644378]
[1643782176072,1.15515856,2771.1,2770.6,0.69644378]
[1643782176271,1.15515856,2771.0,2770.6,0.69644378]
[1643782176472,1.15515856,2770.9,2770.6,0.69644378]
[1643782176673,1.15515856,2770.8,2770.6,0.69644378]
[1643782176872,1.15515856,2770.7,2770.6,0.69644378]
[1643782177322,0.68160463,2771.3,2770.6,0.69644378]
[1643782177323,1.78676319,2771.3,2770.6,0.69644378]
[1643782177520,1.15515856,2771.2,2770.5,2.69986103]
[1643782177713,1.15515856,2771.1,2770.5,2.69986103]
[1643782177914,0.81200463,2771.4,2770.5,2.69986103]
[1643782177915,1.15515856,2771.0,2770.5,2.69986103]
[1643782178114,1.15515856,2770.9,2770.5,0.54251172]
[1643782178314,1.15515856,2770.8,2770.5,0.54251172]
[1643782178519,1.15515856,2770.7,2770.5,0.54251172]
[1643782178714,1.15515856,2770.6,2770.5,0.54251172]
[1643782178919,1.15515856,2770.6,2770.5,1.28868838]
[1643782179118,2.24570485,2771.4,2770.5,1.28868838]
[1643782179318,1.15515856,2771.3,2770.5,1.28868838]
[1643782180224,1.15515856,2771.3,2770.5,3.09328768]
[1643782180520,1.15515856,2771.3,2770.6,0.90229]
[1643782181187,2.24570485,2771.4,2770.6,0.90229]
[1643782181386,1.15515856,2771.3,2770.6,0.90229]
[1643782181787,1.15515856,2771.3,2770.7,1.804476]
[1643782181986,1.15515856,2771.3,2770.7,2.706716]
[1643782184488,1.15515856,2771.3,2770.7,1.07918438]
[1643782184917,1.15515856,2771.3,2770.5,2.19098838]
[1643782185318,1.15515856,2771.3,2770.5,1.28868838]
[1643782185924,1.15515856,2771.3,2770.7,0.90215]
[1643782186128,1.82530514,2772.3,2770.6,5.78484631]
[1643782186129,1.15515856,2771.2,2770.9,0.01238642]
[1643782186324,0.1804,2771.9,2770.9,0.01238642]
[1643782186325,1.15515856,2771.1,2770.9,3.0169]
[1643782186526,1.15515856,2771.0,2770.6,5.43777]
[1643782186726,1.15515856,2770.9,2770.6,1.80427]
[1643782186923,1.15515856,2770.8,2770.6,2.22680555]
[1643782187124,0.33820287,2771.5,2770.7,5.48459954]
[1643782187326,1.17887667,2771.4,2770.8,0.1804]
[1643782187526,1.17887667,2771.3,2770.8,0.1804]
[1643782187735,0.90710165,2771.8,2770.8,1.0825153]
[1643782187736,1.17887667,2771.2,2770.8,1.0825153]
[1643782187926,0.68239267,2771.5,2770.8,1.0825153]
[1643782187927,1.17887667,2771.1,2770.8,1.0825153]
[1643782188127,1.17887667,2771.4,2770.9,2.10795416]
[1643782188326,1.17844724,2771.3,2771.0,0.1804]
[1643782188584,0.68239267,2771.6,2771.0,0.1804]
[1643782188585,1.17844724,2771.2,2771.0,0.1804]
[1643782188778,0.68239267,2771.6,2771.0,0.1804]
[1643782188779,0.68239267,2771.6,2771.2,0.92538166]
[1643782189383,1.17835634,2771.5,2771.2,0.92538166]
[1643782189581,1.17835634,2771.4,2771.2,0.92538166]
[1643782189783,0.68239267,2771.7,2771.2,0.92538166]
[1643782190182,1.86074901,2771.7,2771.2,0.92538166]
[1643782190387,1.17835634,2771.6,2771.2,0.92538166]
[1643782190583,1.17835634,2771.5,2771.2,0.92538166]
[1643782190782,1.17835634,2771.4,2771.2,0.92538166]
[1643782190983,0.68239267,2771.6,2771.0,4.99088]
[1643782190984,1.17835634,2771.3,2771.0,4.99088]
[1643782191187,0.68239267,2771.6,2771.0,0.90209]
[1643782191188,1.17835634,2771.2,2771.0,0.90209]
[1643782191388,1.86074901,2771.5,2770.9,0.1804]
[1643782191692,3.23270843,2771.0,2770.9,0.1804]
[1643782191889,4.41106477,2771.0,2770.9,0.1804]
[1643782192093,5.09345744,2771.0,2770.9,0.1804]
[1643782193126,4.59146477,2771.0,2770.9,0.1804]
[1643782193622,4.59146477,2771.0,2770.2,0.91185356]
[1643782193822,1.17835634,2770.9,2770.2,1.21185356]
[1643782194122,1.17835634,2770.9,2770.3,0.50546061]
[1643782194324,0.1804,2771.2,2770.3,0.1804]
[1643782194325,1.17835634,2770.8,2770.3,0.1804]
[1643782194523,0.68233112,2771.1,2770.7,0.7496945]
[1643782194724,1.18804532,2771.0,2770.7,0.7496945]
[1643782194928,1.18804532,2770.9,2770.3,0.1804]
[1643782195124,1.18804532,2770.8,2770.3,0.1804]
[1643782195324,1.18804532,2770.7,2770.4,0.32507345]
[1643782195530,1.18804532,2770.6,2770.5,0.1804]
[1643782195724,1.18804532,2770.6,2770.3,0.1804]
[1643782195968,0.68233112,2771.2,2770.4,1.22737708]
[1643782196170,0.68233112,2771.2,2770.7,0.43781684]
[1643782196571,1.18817324,2771.1,2770.7,0.43781684]
[1643782196773,0.68233112,2771.3,2770.7,0.43781684]
[1643782196774,1.18817324,2771.0,2770.7,0.43781684]
[1643782196973,0.68233112,2771.3,2770.7,0.43781684]
[1643782196974,1.18817324,2770.9,2770.7,0.43781684]
[1643782197173,0.68233112,2771.3,2770.7,0.43781684]
[1643782197373,0.68233112,2771.3,2770.5,0.1804]
[1643782197574,1.87050436,2771.3,2770.5,0.1804]
[1643782197773,1.18817324,2771.2,2770.5,0.1804]
[1643782197973,1.18817324,2771.1,2770.5,0.1804]
[1643782198185,0.68233112,2771.3,2770.5,0.1804]
[1643782198186,1.18817324,2771.0,2770.5,0.1804]
[1643782198373,1.18817324,2770.9,2770.5,0.1804]
[1643782198573,1.18817324,2770.8,2770.5,0.1804]
[1643782198774,1.18817324,2770.7,2770.5,0.1804]
[1643782198979,1.18817324,2770.6,2770.3,0.1804]
[1643782199173,1.18817324,2770.6,2770.1,4.82701]
[1643782199174,1.18817324,2770.5,2770.2,0.1804]
[1643782199374,0.68233112,2771.0,2770.2,0.1804]
[1643782199375,1.18817324,2770.4,2770.2,0.1804]
[1643782199574,1.18817324,2770.3,2770.2,0.1804]
[1643782199821,1.87050436,2771.0,2770.2,5.20736738]
[1643782200025,1.18817324,2770.9,2770.2,4.9]
[1643782200230,1.18817324,2770.8,2770.2,4.9]
[1643782200828,0.68233112,2771.0,2770.2,4.9]
[1643782200829,1.18817324,2770.7,2770.2,4.9]
[1643782201025,1.18817324,2770.6,2770.2,4.9]
[1643782201227,1.18817324,2770.5,2770.2,4.9]
[1643782201630,1.18817324,2770.4,2770.2,4.9]
[1643782201825,1.18817324,2770.3,2770.2,4.9]
[1643782202026,1.18817324,2770.8,2770.0,1.8045961]
[1643782202227,1.18817324,2770.8,2770.1,0.30687539]
[1643782202429,1.18817324,2770.8,2770.0,0.09783919]
[1643782202629,1.18817324,2770.8,2770.1,0.48731444]
[1643782202826,1.18817324,2770.7,2770.1,0.1804]
[1643782203029,1.18817324,2770.6,2770.2,0.30680534]
[1643782203227,1.18817324,2770.5,2770.3,0.1804]
[1643782203469,0.68233112,2770.9,2770.3,0.1804]
[1643782203470,1.18817324,2770.4,2770.3,0.1804]
[1643782203668,1.18817324,2770.4,2770.1,0.98680947]
[1643782203869,1.18817324,2770.3,2770.2,5.55694891]
[1643782204667,1.87050436,2770.9,2770.2,5.55694891]
[1643782204866,1.87050436,2770.9,2770.2,5.25]
[1643782205068,1.18817324,2770.9,2770.3,0.30688625]
[1643782205267,1.87050436,2770.9,2770.3,0.30688625]
[1643782205668,1.87050436,2770.9,2770.1,0.1804]
[1643782205869,1.87050436,2770.9,2769.9,6.02066]
[1643782205870,1.87050436,2770.9,2770.2,0.28897788]
[1643782206076,1.87050436,2770.9,2770.0,0.1804]
[1643782206273,0.68233112,2770.8,2770.1,0.28887153]
[1643782206474,1.18817324,2770.7,2770.1,0.28887153]
[1643782206773,1.18817324,2770.6,2770.1,0.28887153]
[1643782206973,1.18817324,2770.5,2770.1,0.28887153]
[1643782207223,1.18817324,2770.4,2770.1,0.28887153]
[1643782207425,1.18817324,2770.3,2770.1,0.28887153]
[1643782207622,1.18817324,2770.2,2770.1,0.28887153]
[1643782208025,1.22744313,2770.2,2770.1,2.88887153]
[1643782208224,1.22744313,2770.4,2770.1,2.88887153]
[1643782208425,1.22744313,2770.3,2770.2,3.58920226]
[1643782208826,1.22744313,2770.4,2770.2,3.58920226]
[1643782209025,1.22744313,2770.4,2770.2,3.3]
[1643782209626,1.22744313,2770.4,2770.0,0.1804]
[1643782209827,1.22744313,2770.4,2770.1,0.31936107]
[1643782210828,0.68233112,2770.6,2770.1,0.31936107]
[1643782211277,1.90977425,2770.6,2770.1,0.31936107]
[1643782211470,1.22744313,2770.5,2770.1,0.31936107]
[1643782211672,1.22744313,2770.4,2770.1,2.12411027]
[1643782211872,1.22744313,2770.3,2770.2,2.47703456]
[1643782212873,1.22744313,2770.3,2770.2,6.3864604]
[1643782213973,1.22744313,2770.3,2770.2,6.38688995]
[1643782214173,1.22744313,2770.3,2770.2,6.56728995]
[1643782214472,1.22744313,2770.3,2770.2,4.04976107]
[1643782214719,1.22744313,2770.3,2770.2,0.31936107]
[1643782215519,1.22744313,2770.3,2770.2,3.45829835]
[1643782215720,0.1804,2771.0,2770.2,1.31951026]
[1643782215919,1.20584893,2770.9,2770.3,1.40195107]
[1643782216123,1.20584893,2770.8,2770.4,2.42376107]
[1643782216330,1.20584893,2770.7,2770.5,0.49976107]
[1643782216523,0.68233112,2771.0,2770.5,0.49976107]
[1643782216524,1.20584893,2770.6,2770.5,0.1804]
[1643782216723,1.20584893,2770.6,2770.5,0.48933645]
[1643782216925,1.20584893,2770.8,2770.5,3.23933645]
[1643782217126,1.20584893,2770.7,2770.5,2.9304]
[1643782217323,0.1804,2771.4,2770.5,0.1804]
[1643782217324,1.20584893,2770.6,2770.5,0.1804]
[1643782217524,0.68233112,2770.9,2770.5,0.4893113]
[1643782217723,1.20584893,2770.8,2770.6,0.3089113]
[1643782217922,1.20584893,2770.8,2770.4,4.55707731]
[1643782217923,1.20584893,2770.7,2770.4,4.55707731]
[1643782218125,1.20584893,2770.6,2770.5,0.30873145]
[1643782218325,1.88818005,2770.9,2770.5,0.30873145]
[1643782218568,1.20584893,2770.8,2770.5,0.30873145]
[1643782218769,1.20584893,2770.7,2770.5,0.30873145]
[1643782218974,1.20584893,2770.6,2770.5,0.30873145]
[1643782219166,0.68233112,2771.0,2770.5,0.30873145]
[1643782219167,1.20584893,2770.9,2770.5,0.30873145]
[1643782219368,1.88818005,2770.8,2770.5,0.30873145]
[1643782219569,8.31700006,2771.5,2770.5,0.30873145]
[1643782219570,1.20584893,2770.7,2770.5,0.30873145]
[1643782219769,1.20584893,2770.6,2770.5,0.48913145]
[1643782219969,0.68233112,2770.8,2770.5,0.30873145]
[1643782220169,0.68233112,2770.8,2770.4,4.5111183]
[1643782220368,0.1804,2771.4,2770.5,0.30878002]
[1643782220369,1.20584893,2770.7,2770.5,0.30878002]
[1643782220568,0.68233112,2771.0,2770.5,0.30878002]
[1643782221174,1.88818005,2770.9,2770.5,0.30878002]
[1643782221375,1.20584893,2770.8,2770.5,0.30878002]
[1643782221578,1.20584893,2770.7,2770.3,0.1804]
[1643782221774,0.68233112,2770.9,2770.4,0.30872392]
[1643782221775,1.20584893,2770.6,2770.4,0.30872392]
[1643782221973,1.20584893,2770.5,2770.4,0.30872392]
[1643782222216,0.68233112,2770.9,2770.4,0.30872392]
[1643782222417,0.40006477,2771.1,2770.4,0.30872392]
[1643782222418,1.88818005,2770.8,2770.4,0.30872392]
[1643782222619,1.20584893,2770.7,2770.4,0.30872392]
[1643782222818,0.68233112,2770.8,2770.4,0.30872392]
[1643782222819,1.20584893,2770.6,2770.4,0.30872392]
[1643782223018,0.68233112,2770.9,2770.4,0.30872392]
[1643782223420,1.20584893,2770.8,2770.4,0.30872392]
[1643782223620,1.20584893,2770.7,2770.4,0.30872392]